bitfinex/quotes_BTCUSD_20250709
["timestamp","ask_amount","ask_price","bid_price","bid_amount"]
[1752103813511,0.73847433,111580.0,111570.0,0.01674159]
[1752103815261,0.73947433,111580.0,111570.0,0.01674159]
[1752103819402,0.26197693,111580.0,111570.0,0.19600124]
[1752103819634,0.26197693,111580.0,111570.0,0.24109414]
[1752103819635,0.29856607,111580.0,111570.0,0.24109414]
[1752103819859,0.001,111580.0,111570.0,0.54831094]
[1752103820069,0.14740153,111580.0,111570.0,0.54831094]
[1752103820303,0.14740145,111580.0,111570.0,0.54831094]
[1752103821151,0.001,111580.0,111570.0,0.54831094]
[1752103821367,0.13844,111580.0,111570.0,0.54831094]
[1752103823651,0.001,111580.0,111570.0,0.54831094]
[1752103823857,0.1384,111580.0,111570.0,0.54831094]
[1752103824311,0.001,111580.0,111570.0,0.83760266]
[1752103824521,0.1384,111580.0,111570.0,0.83760266]
[1752103825178,0.1384,111580.0,111570.0,0.54831094]
[1752103825392,0.001,111580.0,111570.0,0.68575094]
[1752103825607,0.14640065,111590.0,111580.0,0.24235914]
[1752103825805,0.14640065,111590.0,111580.0,0.54839245]
[1752103826010,0.14636065,111590.0,111580.0,0.54839245]
[1752103826679,0.00896065,111590.0,111580.0,0.54839245]
[1752103826889,0.02581509,111600.0,111590.0,0.23447978]
[1752103827099,0.27257292,111600.0,111590.0,0.25122145]
[1752103827318,0.26361243,111600.0,111590.0,0.2601825]
[1752103827744,0.26361243,111600.0,111590.0,0.25122145]
[1752103827953,0.272573,111600.0,111590.0,0.25122145]
[1752103828088,0.27271302,111600.0,111590.0,0.25122145]
[1752103828316,0.26375245,111600.0,111590.0,0.2601825]
[1752103828728,0.26475245,111600.0,111590.0,0.2601825]
[1752103829560,0.27371294,111600.0,111590.0,0.25122145]
[1752103829764,0.27371294,111600.0,111590.0,0.2601825]
[1752103830402,0.26475245,111600.0,111590.0,0.2601825]
[1752103830610,0.09257695,111600.0,111590.0,0.55843503]
[1752103830817,0.13850002,111600.0,111590.0,0.55843503]
[1752103831026,0.00114002,111600.0,111590.0,0.55843503]
[1752103831238,0.13850002,111600.0,111590.0,0.55843503]
[1752103832089,0.14745987,111600.0,111590.0,0.55843503]
[1752103832294,0.13850002,111600.0,111590.0,0.55843503]
[1752103832523,0.13850002,111600.0,111590.0,0.5583988]
[1752103832727,0.14745995,111600.0,111590.0,0.5583988]
[1752103833137,0.15642004,111600.0,111590.0,0.5583988]
[1752103833357,0.15642004,111600.0,111590.0,0.26910708]
[1752103833780,0.14745995,111600.0,111590.0,0.26910708]
[1752103834020,0.15641996,111600.0,111590.0,0.26910708]
[1752103834570,0.16538005,111600.0,111590.0,0.26910708]
[1752103837052,0.18330079,111600.0,111590.0,0.21594522]
[1752103837254,0.18330071,111600.0,111590.0,0.22490619]
[1752103837478,0.1743403,111600.0,111590.0,0.22490619]
[1752103837685,0.1743403,111600.0,111590.0,0.23386708]
[1752103837890,0.1743403,111600.0,111590.0,0.22490619]
[1752103838100,0.1743403,111600.0,111590.0,0.24282789]
[1752103838313,0.1743403,111600.0,111590.0,0.23386708]
[1752103838514,0.1743403,111600.0,111590.0,0.24282789]
[1752103838908,0.1743403,111600.0,111590.0,0.23386708]
[1752103839324,0.1743403,111600.0,111590.0,0.24282789]
[1752103839906,0.1743403,111600.0,111590.0,0.23386708]
[1752103840542,0.16538005,111600.0,111590.0,0.23386708]
[1752103840718,0.15642012,111600.0,111590.0,0.26240789]
[1752103842961,0.15642004,111600.0,111590.0,0.56739961]
[1752103844208,0.15642004,111600.0,111590.0,0.56741051]
[1752103845591,0.00114002,111600.0,111590.0,0.56741051]
[1752103845785,0.13850002,111600.0,111590.0,0.56741051]
[1752103847281,0.13850002,111600.0,111590.0,0.56742156]
[1752103848321,0.14746003,111600.0,111590.0,0.56742156]
[1752103849400,0.1564202,111600.0,111590.0,0.56742156]
[1752103850235,0.15867315,111600.0,111590.0,0.56742156]
[1752103850644,0.15867315,111600.0,111590.0,0.27812984]
[1752103850848,0.15867315,111600.0,111590.0,0.56742156]
[1752103851466,0.16763348,111600.0,111590.0,0.25346903]
[1752103851639,0.16763348,111600.0,111590.0,0.21894717]
[1752103851894,0.15867315,111600.0,111590.0,0.21894717]
[1752103852101,0.15867315,111600.0,111590.0,0.22790806]
[1752103852313,0.16763348,111600.0,111590.0,0.22790814]
[1752103852523,0.16763348,111600.0,111590.0,0.23686903]
[1752103852731,0.16763348,111600.0,111590.0,0.21894717]
[1752103852942,0.16763348,111600.0,111590.0,0.22790814]
[1752103853150,0.16763348,111600.0,111590.0,0.23686903]
[1752103853638,0.16763348,111600.0,111590.0,0.22790814]
[1752103853865,0.16763348,111600.0,111590.0,0.23686903]
[1752103854096,0.16763348,111600.0,111590.0,0.22790814]
[1752103854319,0.17659389,111600.0,111590.0,0.22790814]
[1752103854958,0.17659389,111600.0,111590.0,0.23686903]
[1752103855148,0.16763348,111600.0,111590.0,0.23686903]
[1752103855351,0.16763348,111600.0,111590.0,0.22790814]
[1752103855957,0.17659389,111600.0,111590.0,0.22790814]
[1752103856397,0.16763348,111600.0,111590.0,0.22790814]
[1752103856732,0.15867315,111600.0,111590.0,0.24450798]
[1752103857731,0.01235298,111600.0,111590.0,0.5489997]
[1752103857983,0.1497129,111600.0,111590.0,0.5489997]
[1752103858415,0.15867299,111600.0,111590.0,0.5489997]
[1752103859070,0.00339297,111600.0,111590.0,0.5489997]
[1752103859248,0.14075297,111600.0,111590.0,0.5489997]
[1752103859464,0.1497129,111600.0,111590.0,0.5489997]
[1752103859836,0.14075297,111600.0,111590.0,0.5489997]
[1752103860710,0.00339297,111600.0,111590.0,0.5489997]
[1752103860919,0.13850002,111600.0,111590.0,0.5489997]
[1752103861354,0.13850002,111600.0,111590.0,0.54903926]
[1752103862407,0.13850002,111600.0,111590.0,0.55729552]
[1752103862788,0.13850002,111600.0,111590.0,0.2680038]
[1752103863007,0.13850002,111600.0,111590.0,0.55729552]
[1752103863171,0.00114002,111600.0,111590.0,0.83197552]
[1752103867477,0.00114002,111600.0,111590.0,0.92341245]
[1752103867687,0.00114002,111600.0,111590.0,0.95033345]
[1752103868550,0.00014002,111600.0,111590.0,0.95033345]
[1752103868764,0.00014002,111600.0,111590.0,0.95233345]
[1752103869195,0.18436575,111620.0,111610.0,0.19908454]
[1752103869408,0.16644823,111620.0,111610.0,0.22481061]
[1752103869856,0.17540695,111620.0,111610.0,0.22481061]
[1752103870063,0.03808695,111620.0,111610.0,0.22481061]
[1752103870288,0.16419528,111620.0,111610.0,0.22799061]
[1752103870499,0.15523672,111620.0,111610.0,0.22799061]
[1752103870915,0.16419536,111620.0,111610.0,0.22799061]
[1752103871551,0.0591183,111630.0,111620.0,0.18813823]
[1752103871766,0.45215429,111630.0,111620.0,0.2138639]
[1752103872007,0.27299099,111630.0,111620.0,0.22282246]
[1752103872427,0.45215501,111630.0,111620.0,0.2138639]
[1752103872638,0.46893957,111630.0,111620.0,0.19594622]
[1752103873521,0.74927329,111630.0,111620.0,0.01676687]
[1752103873726,0.75127329,111630.0,111620.0,0.01676687]
[1752103874581,0.75127329,111630.0,111620.0,0.19594622]
[1752103874986,0.75127329,111630.0,111620.0,0.17917935]
[1752103875611,0.46198157,111630.0,111620.0,0.17917935]
[1752103876492,0.46198157,111630.0,111620.0,0.18813831]
[1752103877187,0.46198157,111630.0,111620.0,0.19709719]
[1752103877406,0.46198157,111630.0,111620.0,0.18813831]
[1752103878287,0.46198157,111630.0,111620.0,0.17917935]
[1752103878890,0.46198157,111630.0,111620.0,0.18813831]
[1752103879127,0.46198157,111630.0,111620.0,0.17917935]
[1752103880180,0.45302341,111630.0,111620.0,0.17917935]
[1752103882304,0.00895872,111620.0,111610.0,0.48836626]
[1752103882542,0.00895872,111620.0,111610.0,0.20225454]
[1752103882750,0.0179176,111620.0,111610.0,0.2112139]
[1752103882955,0.01791736,111620.0,111610.0,0.2112139]
[1752103883160,0.02687592,111620.0,111610.0,0.22017318]
[1752103883364,0.03583432,111620.0,111610.0,0.22017318]
[1752103883535,0.0268756,111620.0,111610.0,0.22913238]
[1752103883773,0.0268756,111620.0,111610.0,0.5184241]
[1752103884178,0.0268756,111620.0,111610.0,0.49154626]
[1752103884350,0.0268756,111620.0,111610.0,0.50050546]
[1752103884599,0.0278756,111620.0,111610.0,0.50050546]
[1752103885024,0.0278756,111620.0,111610.0,0.21121374]
[1752103885468,0.0368344,111620.0,111610.0,0.22017318]
[1752103885891,0.21601375,111620.0,111610.0,0.17919541]
[1752103886105,0.21601375,111620.0,111600.0,0.19907757]
[1752103886106,0.026878,111610.0,111600.0,0.19907757]
[1752103886314,0.026878,111610.0,111600.0,0.21699823]
[1752103886734,0.01791848,111610.0,111600.0,0.22595824]
[1752103886949,0.01791848,111610.0,111600.0,0.21121718]
[1752103887209,0.01791824,111610.0,111600.0,0.5171089]
[1752103887624,0.01791824,111610.0,111600.0,0.5181089]
[1752103888009,0.01791824,111610.0,111600.0,0.22881718]
[1752103888262,0.02687768,111610.0,111600.0,0.5181089]
[1752103888471,0.0268776,111610.0,111600.0,0.5181089]
[1752103889954,0.44477276,111620.0,111610.0,0.19711446]
[1752103890187,0.44477276,111620.0,111610.0,0.21386439]
[1752103890394,0.3074922,111620.0,111610.0,0.50511619]
[1752103890606,0.17415592,111620.0,111610.0,0.51725547]
[1752103890849,0.17415592,111620.0,111610.0,0.51725555]
[1752103891065,0.17415592,111620.0,111610.0,0.51725563]
[1752103891298,0.17515592,111620.0,111610.0,0.51725563]
[1752103891514,0.17515592,111620.0,111610.0,0.23692327]
[1752103891716,0.03787592,111620.0,111610.0,0.23692327]
[1752103891938,0.35658822,111620.0,111610.0,0.21582447]
[1752103892152,0.35433527,111620.0,111610.0,0.21582447]
[1752103892372,0.4457722,111620.0,111610.0,0.01674993]
[1752103892575,0.01791897,111610.0,111600.0,0.50750979]
[1752103892782,0.02687841,111610.0,111600.0,0.53518372]
[1752103892984,0.03583753,111610.0,111600.0,0.52622363]
[1752103893201,0.03583753,111610.0,111600.0,0.23693191]
[1752103893414,0.03583761,111610.0,111600.0,0.52622363]
[1752103893826,0.02687792,111610.0,111600.0,0.52822363]
[1752103894029,0.03583753,111610.0,111600.0,0.52822363]
[1752103894441,0.0179184,111610.0,111600.0,0.52822363]
[1752103894674,0.02687792,111610.0,111600.0,0.54382363]
[1752103895012,0.0179184,111610.0,111600.0,0.54382363]
[1752103895203,0.02687784,111610.0,111600.0,0.56042363]
[1752103896482,0.02687784,111610.0,111600.0,0.56043094]
[1752103896906,0.11935437,111620.0,111610.0,0.20803398]
[1752103897041,0.11935437,111620.0,111610.0,0.2158361]
[1752103897042,0.44702563,111620.0,111610.0,0.2158361]
[1752103897241,0.44477268,111620.0,111610.0,0.2158361]
[1752103897708,0.44477268,111620.0,111610.0,0.22479571]
[1752103897883,0.44477268,111620.0,111610.0,0.23375523]
[1752103898215,0.44477268,111620.0,111610.0,0.22479571]
[1752103898417,0.44577268,111620.0,111610.0,0.22479571]
[1752103898853,0.44577268,111620.0,111610.0,0.23375515]
[1752103899059,0.02891744,111620.0,111610.0,0.23375515]
[1752103899268,0.34762974,111620.0,111610.0,0.52304695]
[1752103899494,0.34537679,111620.0,111610.0,0.52305381]
[1752103900533,0.34537679,111620.0,111610.0,0.23376209]
[1752103901644,0.34537679,111620.0,111610.0,0.22480257]
[1752103901980,0.34537679,111620.0,111610.0,0.23376201]
[1752103902181,0.34537679,111620.0,111610.0,0.23376209]
[1752103904829,0.34537679,111620.0,111610.0,0.5229552]
[1752103905004,0.35429519,111620.0,111610.0,0.51399543]
[1752103905208,0.36325415,111620.0,111610.0,0.51399543]
[1752103905606,0.35429575,111620.0,111610.0,0.50503591]
[1752103906711,0.35429575,111620.0,111610.0,0.51399543]
[1752103908658,0.35429575,111620.0,111610.0,0.52295487]
[1752103909446,0.35429575,111620.0,111610.0,0.51399543]
[1752103909877,0.35429575,111620.0,111610.0,0.52295487]
[1752103912039,0.16615744,111620.0,111610.0,0.53191423]
[1752103912243,0.17736887,111620.0,111610.0,0.53510382]
[1752103912977,0.17736887,111620.0,111610.0,0.52614454]
[1752103913184,0.17736887,111620.0,111610.0,0.53510382]
[1752103913387,0.17736887,111620.0,111610.0,0.52614454]
[1752103914000,0.36550718,111620.0,111610.0,0.51718978]
[1752103914212,0.36325423,111620.0,111610.0,0.50504034]
[1752103915225,0.36325423,111620.0,111610.0,0.21584723]
[1752103915437,0.34533719,111620.0,111610.0,0.49608098]
[1752103915633,0.36033719,111620.0,111610.0,0.49608098]
[1752103915843,0.35137831,111620.0,111610.0,0.1979281]
[1752103916046,0.73954939,111620.0,111610.0,0.01677269]
[1752103918605,0.45035628,111620.0,111610.0,0.01677269]
[1752103918846,0.73954939,111620.0,111610.0,0.01677269]
[1752103920902,0.77182373,111620.0,111610.0,0.01677269]
[1752103924750,0.18815518,111610.0,111600.0,0.49723085]
[1752103924985,0.27959211,111610.0,111600.0,0.51399925]
[1752103925329,0.28855163,111610.0,111600.0,0.51399925]
[1752103925584,0.28855163,111610.0,111600.0,0.23376647]
[1752103925802,0.28855163,111610.0,111600.0,0.51399925]
[1752103926248,0.28855163,111610.0,111600.0,0.51499925]
[1752103926450,0.28855163,111610.0,111600.0,0.22580614]
[1752103926655,0.28855163,111610.0,111600.0,0.51499925]
[1752103927405,0.28855163,111610.0,111600.0,0.50603884]
[1752103927406,0.27959211,111610.0,111600.0,0.50603884]
[1752103927638,0.27959211,111610.0,111600.0,0.50703884]
[1752103928539,0.27959211,111610.0,111600.0,0.22680614]
[1752103928723,0.27959211,111610.0,111600.0,0.50703884]
[1752103928960,0.27063234,111610.0,111600.0,0.49807835]
[1752103930579,0.27063234,111610.0,111600.0,0.498074]
[1752103930800,0.27063234,111610.0,111600.0,0.50703449]
[1752103932226,0.27063234,111610.0,111600.0,0.5159949]
[1752103933615,0.27063234,111610.0,111600.0,0.52495523]
[1752103934046,0.27063234,111610.0,111600.0,0.53391548]
[1752103934423,0.27959195,111610.0,111600.0,0.22680179]
[1752103934661,0.28855164,111610.0,111600.0,0.50703449]
[1752103935262,0.28855164,111610.0,111600.0,0.5159949]
[1752103935455,0.28855164,111610.0,111600.0,0.31307716]
[1752103936133,0.27959203,111610.0,111600.0,0.31307716]
[1752103937371,0.27959203,111610.0,111600.0,0.02388405]
[1752103937542,0.27959203,111610.0,111600.0,0.31307716]
[1752103939226,0.27959203,111610.0,111600.0,0.49228862]
[1752103939701,0.27959203,111610.0,111600.0,0.31307716]
[1752103940146,0.27959203,111610.0,111600.0,0.49228862]
[1752103940550,0.27959203,111610.0,111600.0,0.50124919]
[1752103942077,0.28855147,111610.0,111600.0,0.23701641]
[1752103942350,0.28855147,111610.0,111600.0,0.52620952]
[1752103943525,0.28855147,111610.0,111600.0,0.54270952]
[1752103943932,0.28855147,111610.0,111600.0,0.25351641]
[1752103944329,0.28855147,111610.0,111600.0,0.54270952]
[1752103944540,0.28855147,111610.0,111600.0,0.55166977]
[1752103945410,0.42571147,111610.0,111600.0,0.56062986]
[1752103946595,0.15507864,111610.0,111600.0,0.85878298]
[1752103946813,0.15507856,111610.0,111600.0,0.85878298]
[1752103947949,0.164038,111610.0,111600.0,0.85878298]
[1752103948387,0.17299761,111610.0,111600.0,0.85878298]
[1752103948605,0.17299761,111610.0,111600.0,0.56958987]
[1752103948846,0.1819573,111610.0,111600.0,0.56958987]
[1752103949294,0.164038,111610.0,111600.0,0.85878298]
[1752103949734,0.01,111620.0,111610.0,0.23433454]
[1752103949950,0.17403568,111620.0,111610.0,0.5492509]
[1752103950195,0.18299376,111620.0,111610.0,0.55821018]
[1752103950398,0.17403512,111620.0,111610.0,0.55821018]
[1752103950751,0.17503512,111620.0,111610.0,0.55821018]
[1752103951361,0.17503512,111620.0,111610.0,0.5668672]
[1752103951561,0.02891656,111620.0,111610.0,0.5668672]
[1752103951978,0.14711832,111620.0,111610.0,0.5668672]
[1752103953415,0.14707832,111620.0,111610.0,0.5668672]
[1752103953612,0.13812,111620.0,111610.0,0.5668672]
[1752103953819,0.14707824,111620.0,111610.0,0.5668672]
[1752103954219,0.15603664,111620.0,111610.0,0.5668672]
[1752103954484,0.15603664,111620.0,111610.0,0.55821018]
[1752103955052,0.01891664,111620.0,111610.0,0.55821018]
[1752103955258,0.15603664,111620.0,111610.0,0.55821018]
[1752103955637,0.173954,111620.0,111610.0,0.55821018]
[1752103956554,0.36209223,111620.0,111610.0,0.55821018]
[1752103956744,0.173954,111620.0,111610.0,0.55821018]
[1752103957847,0.18291288,111620.0,111610.0,0.55821018]
[1752103958920,0.18291288,111620.0,111610.0,0.26901707]
[1752103959232,0.34417559,111620.0,111610.0,0.53133226]
[1752103959440,0.34417559,111620.0,111610.0,0.49923226]
[1752103959644,0.34417559,111620.0,111610.0,0.49923234]
[1752103959886,0.34417559,111620.0,111610.0,0.21003923]
[1752103960082,0.35313455,111620.0,111610.0,0.51715131]
[1752103960296,0.34417599,111620.0,111610.0,0.50819195]
[1752103960497,0.33521719,111620.0,111610.0,0.49923234]
[1752103960730,0.33521719,111620.0,111610.0,0.50819203]
[1752103960929,0.33521719,111620.0,111610.0,0.21899892]
[1752103961093,0.33521719,111620.0,111610.0,0.50819203]
[1752103961300,0.33521719,111620.0,111610.0,0.51715164]
[1752103961704,0.33521719,111620.0,111610.0,0.52611116]
[1752103962096,0.33521719,111620.0,111610.0,0.51715164]
[1752103962322,0.33521719,111620.0,111610.0,0.52611116]
[1752103962927,0.33521719,111620.0,111610.0,0.5350706]
[1752103963142,0.33521719,111620.0,111610.0,0.52611116]
[1752103963349,0.15603784,111620.0,111610.0,0.53507019]
[1752103963548,0.15603784,111620.0,111610.0,0.53506978]
[1752103963757,0.15603744,111620.0,111610.0,0.52611017]
[1752103963996,0.15603704,111620.0,111610.0,0.52611017]
[1752103964191,0.16499592,111620.0,111610.0,0.52611017]
[1752103964746,0.16499592,111620.0,111610.0,0.51715089]
[1752103965493,0.17395488,111620.0,111610.0,0.51715089]
[1752103965699,0.35313423,111620.0,111610.0,0.50819153]
[1752103966193,0.35313423,111620.0,111610.0,0.51715089]
[1752103967781,0.15603704,111620.0,111610.0,0.52611009]
[1752103967981,0.16499576,111620.0,111610.0,0.52611009]
[1752103968815,0.17395464,111620.0,111610.0,0.52611009]
[1752103969526,0.13812,111620.0,111610.0,0.55791017]
[1752103969759,0.13808,111620.0,111610.0,0.56686937]
[1752103970953,0.001,111620.0,111610.0,0.56686937]
[1752103971161,0.13808,111620.0,111610.0,0.85606248]
[1752103971592,0.14703824,111620.0,111610.0,0.85606248]
[1752103971796,0.14703824,111620.0,111610.0,0.56686937]
[1752103972206,0.86750606,111650.0,111640.0,0.18419272]
[1752103972207,0.19704376,111650.0,111640.0,0.18419272]
[1752103972408,0.3521764,111650.0,111640.0,0.49016441]
[1752103972609,0.63241352,111650.0,111640.0,0.1959113]
[1752103972773,0.7467943,111650.0,111640.0,0.01676405]
[1752103972980,0.7378379,111650.0,111640.0,0.01676405]
[1752103973388,0.77705926,111650.0,111640.0,0.01676405]
[1752103973794,0.78542889,111650.0,111640.0,0.01676405]
[1752103973997,0.78142889,111650.0,111640.0,0.01676405]
[1752103974813,0.18810445,111640.0,111630.0,0.1791374]
[1752103975012,0.27954138,111640.0,111630.0,0.1791374]
[1752103975223,0.43308138,111640.0,111630.0,0.1791374]
[1752103975436,0.44828138,111640.0,111630.0,0.1791374]
[1752103975654,0.74633968,111640.0,111630.0,0.1791374]
[1752103975857,0.4572385,111640.0,111630.0,0.1791374]
[1752103976733,0.1970789,111630.0,111620.0,0.18419972]
[1752103976939,0.02687344,111630.0,111620.0,0.2080662]
[1752103977145,0.0357465,111630.0,111620.0,0.2080662]
[1752103977345,0.22386748,111630.0,111620.0,0.1991074]
[1752103977570,0.04470418,111630.0,111620.0,0.1991074]
[1752103977696,0.03583152,111630.0,111620.0,0.21583592]
[1752103977904,0.22395298,111630.0,111620.0,0.20687712]
[1752103978111,0.2472953,111630.0,111620.0,0.19686816]
[1752103978378,0.22937954,111630.0,111620.0,0.19686816]
[1752103978593,0.60991765,111630.0,111620.0,0.01772844]
[1752103978769,0.32081647,111630.0,111620.0,0.01872844]
[1752103982330,0.32081647,111630.0,111620.0,0.002]
[1752103982547,0.45785647,111630.0,111620.0,0.01874088]
[1752103985013,0.45785647,111630.0,111620.0,0.20687919]
[1752103985225,0.42555647,111630.0,111620.0,0.20687911]
[1752103985433,0.42555647,111630.0,111620.0,0.2068792]
[1752103985650,0.42555647,111630.0,111620.0,0.53395766]
[1752103985651,0.10935285,111630.0,111620.0,0.53395766]
[1752103985864,0.2576034,111630.0,111620.0,0.53395766]
[1752103986081,0.25535045,111630.0,111620.0,0.53395774]
[1752103986297,0.43451375,111630.0,111620.0,0.5249991]
[1752103986510,0.43451375,111630.0,111620.0,0.2269392]
[1752103986733,0.43451375,111630.0,111620.0,0.235898]
[1752103987602,0.42555615,111630.0,111620.0,0.2089292]
[1752103987801,0.42555615,111630.0,111620.0,0.217888]
[1752103988019,0.42555615,111630.0,111620.0,0.22684672]
[1752103988234,0.42555615,111630.0,111620.0,0.19997024]
[1752103988456,0.42555615,111630.0,111620.0,0.19997067]
[1752103989282,0.42555615,111630.0,111620.0,0.20892963]
[1752103989485,0.41659831,111630.0,111620.0,0.19997067]
[1752103990113,0.41659831,111630.0,111620.0,0.20892955]
[1752103990322,0.41659831,111630.0,111620.0,0.21788835]
[1752103991275,0.41659831,111630.0,111620.0,0.22684707]
[1752103991501,0.24639285,111630.0,111620.0,0.23001764]
[1752103991720,0.25535045,111630.0,111620.0,0.56783594]
[1752103992385,0.25535045,111630.0,111620.0,0.56783602]
[1752103993071,0.25535045,111630.0,111620.0,0.55887746]
[1752103993266,0.25535045,111630.0,111620.0,0.56783602]
[1752103993519,0.43451375,111630.0,111620.0,0.54991882]
[1752103994452,0.43451375,111630.0,111620.0,0.5320013]
[1752103994678,0.43451375,111630.0,111620.0,0.5166013]
[1752103994896,0.42555615,111630.0,111620.0,0.22750012]
[1752103995108,0.42555615,111630.0,111620.0,0.23645892]
[1752103995325,0.42555615,111630.0,111620.0,0.22750012]
[1752103995527,0.41659831,111630.0,111620.0,0.22750012]
[1752103996111,0.41659831,111630.0,111620.0,0.21210012]
[1752103996317,0.41659831,111630.0,111620.0,0.22105892]
[1752103996905,0.41659831,111630.0,111620.0,0.23001756]
[1752103997103,0.41659831,111630.0,111620.0,0.24541756]
[1752103997525,0.41655831,111630.0,111620.0,0.24541764]
[1752103997922,0.41655831,111630.0,111620.0,0.22750012]
[1752103998134,0.40760023,111630.0,111620.0,0.20314124]
[1752103998539,0.40760023,111630.0,111620.0,0.2121002]
[1752103998900,0.40760023,111630.0,111620.0,0.2089302]
[1752104000514,0.40760023,111630.0,111620.0,0.21788908]
[1752104004247,0.41655831,111630.0,111620.0,0.2268478]
[1752104004446,0.41655831,111630.0,111620.0,0.25537644]
[1752104004684,0.41655831,111630.0,111620.0,0.25395908]
[1752104004854,0.41655831,111630.0,111620.0,0.2629178]
[1752104005055,0.41655831,111630.0,111620.0,0.27187644]
[1752104005295,0.42551615,111630.0,111620.0,0.280835]
[1752104005994,0.43447431,111630.0,111620.0,0.56099069]
[1752104006998,0.43447431,111630.0,111620.0,0.27188951]
[1752104007363,0.43447431,111630.0,111620.0,0.26293087]
[1752104007559,0.42551647,111630.0,111620.0,0.25397215]
[1752104007920,0.41655839,111630.0,111620.0,0.22107215]
[1752104008173,0.41655839,111630.0,111620.0,0.23767215]
[1752104008382,0.41655839,111630.0,111620.0,0.22107215]
[1752104008633,0.41655839,111630.0,111620.0,0.19998431]
[1752104009550,0.41655839,111630.0,111620.0,0.20894327]
[1752104010160,0.41655839,111630.0,111620.0,0.21790215]
[1752104010370,0.41655839,111630.0,111620.0,0.20894327]
[1752104010657,0.41655839,111630.0,111620.0,0.21790215]
[1752104012971,0.41655839,111630.0,111620.0,0.19998431]
[1752104013176,0.40760023,111630.0,111620.0,0.19998431]
[1752104014577,0.40760023,111630.0,111620.0,0.20894327]
[1752104015718,0.40760023,111630.0,111620.0,0.19998431]
[1752104017306,0.40760023,111630.0,111620.0,0.01875496]
[1752104017645,0.72680141,111630.0,111620.0,0.01875496]
[1752104018145,0.43770023,111630.0,111620.0,0.01875496]
[1752104018357,0.72680141,111630.0,111620.0,0.01875496]
[1752104018925,0.72688734,111630.0,111620.0,0.01875496]
[1752104020894,0.72689624,111630.0,111620.0,0.01875496]
[1752104021929,1.38835745,111630.0,111620.0,0.01875496]
[1752104022296,1.09916144,111630.0,111620.0,0.01875496]
[1752104022764,1.38835745,111630.0,111620.0,0.01875496]
[1752104022898,1.38835745,111630.0,111620.0,0.01675496]
[1752104023105,1.4048983,111630.0,111620.0,0.01675496]
[1752104023310,1.4068983,111630.0,111620.0,0.01675496]
[1752104023507,0.19713204,111600.0,111590.0,0.03723]
[1752104023742,0.33405204,111600.0,111590.0,0.21353673]
[1752104023955,0.00895936,111610.0,111600.0,0.2301322]
[1752104024159,0.19709719,111620.0,111610.0,0.22319518]
[1752104024359,0.33401719,111620.0,111610.0,0.25211408]
[1752104024599,0.33401719,111620.0,111610.0,0.26107369]
[1752104024803,0.3341009,111620.0,111610.0,0.26107369]
[1752104025004,0.32514202,111620.0,111610.0,0.25211408]
[1752104025207,0.31618306,111620.0,111610.0,0.25211408]
[1752104026857,0.31718306,111620.0,111610.0,0.25211408]
[1752104027862,0.31718306,111620.0,111610.0,0.25210365]
[1752104028062,0.31718306,111620.0,111610.0,0.26106326]
[1752104028294,0.31718306,111620.0,111610.0,0.24314396]
[1752104028491,0.31718306,111620.0,111610.0,0.23995396]
[1752104028694,0.18026306,111620.0,111610.0,0.23995396]
[1752104028902,0.31943601,111620.0,111610.0,0.23995396]
[1752104029114,0.31718306,111620.0,111610.0,0.04425855]
[1752104029600,0.31718306,111620.0,111610.0,0.03529878]
[1752104029800,0.40861999,111620.0,111610.0,0.01675878]
[1752104030001,0.729416,111620.0,111610.0,0.01675878]
[1752104032974,0.76163695,111620.0,111610.0,0.01675878]
[1752104033291,1.08395685,111620.0,111610.0,0.01675878]
[1752104033495,6.11617481,111620.0,111610.0,0.01675878]
[1752104036446,6.61237481,111620.0,111610.0,0.01675878]
[1752104038524,0.20611067,111590.0,111580.0,0.31494904]
[1752104038731,0.34303067,111590.0,111580.0,0.33169598]
[1752104039567,0.34303067,111590.0,111580.0,0.32273413]
[1752104039776,0.34266876,111590.0,111580.0,0.31677343]
[1752104039952,0.42514464,111590.0,111580.0,0.11397767]
[1752104040565,0.42514464,111590.0,111580.0,0.10997767]
[1752104040774,0.42550679,111590.0,111580.0,0.2961437]
[1752104041007,0.43446816,111590.0,111580.0,0.31837394]
[1752104041379,0.42550711,111590.0,111580.0,0.31537394]
[1752104041810,0.42550711,111590.0,111580.0,0.31637394]
[1752104042646,0.42550711,111590.0,111580.0,0.32533587]
[1752104043045,0.42550711,111590.0,111580.0,0.33429772]
[1752104043248,0.42550711,111590.0,111580.0,0.26250699]
[1752104043492,0.43413508,111590.0,111580.0,0.26250699]
[1752104044293,0.42550711,111590.0,111580.0,0.25931699]
[1752104044535,0.42550711,111590.0,111580.0,0.26250699]
[1752104045066,0.42550711,111590.0,111580.0,0.25354514]
[1752104045281,0.40758445,111590.0,111580.0,0.02397761]
[1752104045506,0.40758445,111590.0,111580.0,0.21218337]
[1752104045717,0.40758445,111590.0,111580.0,0.22114546]
[1752104046141,0.40758445,111590.0,111580.0,0.23010747]
[1752104046611,0.40758445,111590.0,111580.0,0.02397761]
[1752104047049,0.41628087,111590.0,111580.0,0.2032212]
[1752104047891,0.41628087,111590.0,111580.0,0.2000312]
[1752104049047,0.41628087,111590.0,111580.0,0.20003577]
[1752104049651,0.41628087,111590.0,111580.0,0.20899794]
[1752104049991,0.41628087,111590.0,111580.0,0.21796003]
[1752104052545,0.41628087,111590.0,111580.0,0.02079218]
[1752104052745,0.41628087,111590.0,111580.0,0.20003577]
[1752104053248,0.41628087,111590.0,111580.0,0.20899794]
[1752104053867,0.41628087,111590.0,111580.0,0.21796003]
[1752104054540,0.41628087,111590.0,111580.0,0.20899794]
[1752104055312,0.41628087,111590.0,111580.0,0.21796003]
[1752104056326,0.41628087,111590.0,111580.0,0.20003577]
[1752104056549,0.23705335,111590.0,111580.0,0.26225132]
[1752104056758,0.42524184,111590.0,111580.0,0.25328971]
[1752104056976,0.43420305,111590.0,111580.0,0.25328971]
[1752104057192,0.45212507,111590.0,111580.0,0.2622514]
[1752104057628,0.45212507,111590.0,111580.0,0.25329817]
[1752104057840,0.27289755,111590.0,111580.0,0.26225994]
[1752104058060,0.27289755,111590.0,111580.0,0.27122163]
[1752104058268,0.46108644,111590.0,111580.0,0.26225994]
[1752104058685,0.45212571,111590.0,111580.0,0.25329817]
[1752104059312,0.45212571,111590.0,111580.0,0.24433632]
[1752104059514,0.44316474,111590.0,111580.0,0.25329825]
[1752104059719,0.44316474,111590.0,111580.0,0.2622601]
[1752104060473,0.43446736,111590.0,111580.0,0.2622601]
[1752104060876,0.26420121,111590.0,111580.0,0.27122187]
[1752104061399,0.26420121,111590.0,111580.0,0.28018356]
[1752104061580,0.26420121,111590.0,111580.0,0.27122187]
[1752104062352,0.25523984,111590.0,111580.0,0.28018356]
[1752104062556,0.26420113,111590.0,111580.0,0.28018356]
[1752104062764,0.45239002,111590.0,111580.0,0.27122187]
[1752104062987,0.43446832,111590.0,111580.0,0.20900632]
[1752104063176,0.43446832,111590.0,111580.0,0.21796833]
[1752104063377,0.43446832,111590.0,111580.0,0.21798934]
[1752104064026,0.44326447,111590.0,111580.0,0.21798934]
[1752104064826,0.43430326,111590.0,111580.0,0.21798934]
[1752104065228,0.43430326,111590.0,111580.0,0.02082165]